fUST/lending_fUST_20240717
["ID","MTS","AMOUNT","RATE_DAILY","PERIOD"]
[332454130,1721202633379,-500.0,0.00021906,2]
[332454131,1721202633389,-500.0,0.00021906,2]
[332454132,1721202633398,-198.2963047,0.00021906,2]
[332454133,1721202633407,-500.0,0.00021906,2]
[332454134,1721202633416,-3400.55085799,0.00021907,3]
[332454135,1721202633424,-44207.1611539,0.00021907,3]
[332454136,1721202633434,-81672.92401365,0.00021907,2]
[332454137,1721202633444,-8182.96114692,0.00021907,2]
[332454138,1721202633455,-226.06683349,0.00021907,2]
[332454139,1721202633468,-764.99692513,0.00021907,2]
[332454140,1721202633477,-6878.25807542,0.00021907,2]
[332454141,1721202633487,-154.72922386,0.00021907,2]
[332454142,1721202633497,-428.94151396,0.00021907,2]
[332454143,1721202633507,-6077.64340982,0.00021917,5]
[332454144,1721202633516,-7204.05963936,0.00021917,5]
[332454145,1721202633526,-150.20328122,0.00021917,2]
[332454146,1721202633535,-500.0,0.00021917,2]
[332454147,1721202633545,-500.0,0.00021917,2]
[332454148,1721202633555,-500.0,0.00021917,2]
[332454149,1721202633565,-500.0,0.00021917,2]
[332454150,1721202633574,-500.0,0.00021917,2]
[332454151,1721202633583,-500.0,0.00021917,2]
[332454152,1721202633593,-500.0,0.00021917,2]
[332454153,1721202633603,-518.93945252,0.00021917,2]
[332454154,1721202633614,-224.74185223,0.00021917,2]
[332454155,1721202633624,-500.0,0.00021917,2]
[332454156,1721202633634,-501.67529165,0.00021917,2]
[332454157,1721202633644,-500.0,0.00021917,2]
[332454158,1721202633654,-500.0,0.00021917,2]
[332454159,1721202633664,-500.0,0.00021917,2]
[332454160,1721202633673,-500.0,0.00021917,2]
[332454161,1721202633683,-500.0,0.00021917,2]
[332454162,1721202633694,-500.0,0.00021917,2]
[332454163,1721202633704,-500.0,0.00021917,2]
[332454164,1721202633714,-500.0,0.00021917,2]
[332454165,1721202633724,-500.0,0.00021917,2]
[332454166,1721202633734,-502.81409546,0.00021917,2]
[332454167,1721202633745,-500.0,0.00021917,2]
[332454168,1721202633756,-500.0,0.00021917,2]
[332454169,1721202633766,-500.0,0.00021917,2]
[332454170,1721202633776,-203.62997741,0.00021917,2]
[332454171,1721202633786,-500.0,0.00021917,2]
[332454172,1721202633796,-503.06287828,0.00021917,2]
[332454173,1721202633806,-543.25066049,0.00021917,2]
[332454174,1721202633816,-503.64464847,0.00021917,2]
[332454175,1721202633826,-500.0,0.00021917,2]
[332454176,1721202633837,-330.83450562,0.00021917,2]
[332454177,1721202633846,-500.11020048,0.00021917,2]
[332454178,1721202633856,-500.0,0.00021917,2]
[332454179,1721202633866,-500.0,0.00021917,2]
[332454180,1721202633876,-500.0,0.00021917,2]
[332454181,1721202633885,-500.0,0.00021917,2]
[332454182,1721202633895,-500.0,0.00021917,2]
[332454183,1721202633904,-500.0,0.00021917,2]
[332454184,1721202633914,-500.0,0.00021917,2]
[332454185,1721202633925,-500.0,0.00021917,2]
[332454186,1721202633935,-500.0,0.00021917,2]
[332454187,1721202633945,-978.44,0.00021917,2]
[332454188,1721202633954,-500.0,0.00021917,2]
[332454189,1721202633965,-978.44,0.00021917,2]
[332454190,1721202633976,-500.0,0.00021917,2]
[332454191,1721202633986,-978.44,0.00021917,2]
[332454192,1721202633997,-500.0,0.00021917,2]
[332454193,1721202634007,-978.44,0.00021917,2]
[332454194,1721202634016,-500.0,0.00021917,2]
[332454195,1721202634026,-500.0,0.00021917,2]
[332454196,1721202634038,-500.0,0.00021917,2]
[332454197,1721202634049,-506.57086791,0.00021917,2]
[332454198,1721202634060,-500.0,0.00021917,2]
[332454199,1721202634070,-500.0,0.00021917,2]
[332454200,1721202634081,-500.0,0.00021917,2]
[332454201,1721202634093,-500.0,0.00021917,2]
[332454202,1721202634103,-500.0,0.00021917,2]
[332454203,1721202634113,-503.19748351,0.00021917,2]
[332454204,1721202634123,-500.0,0.00021917,2]
[332454205,1721202634132,-500.0,0.00021917,2]
[332454206,1721202634143,-500.0,0.00021917,2]
[332454207,1721202634153,-500.0,0.00021917,2]
[332454208,1721202634162,-500.0,0.00021917,2]
[332454209,1721202634172,-500.0,0.00021917,2]
[332454210,1721202634181,-500.0,0.00021917,2]
[332454211,1721202634191,-500.0,0.00021917,2]
[332454212,1721202634200,-500.0,0.00021917,2]
[332454213,1721202634210,-500.0,0.00021917,2]
[332454214,1721202634219,-500.0,0.00021917,2]
[332454215,1721202634229,-500.0,0.00021917,2]
[332454216,1721202634240,-500.0,0.00021917,2]
[332454217,1721202634250,-500.0,0.00021917,2]
[332454218,1721202634260,-514.90537044,0.00021917,2]
[332454219,1721202634270,-503.49634691,0.00021917,2]
[332454220,1721202634283,-500.0,0.00021917,2]
[332454221,1721202634292,-500.0,0.00021917,2]
[332454222,1721202634302,-503.19769547,0.00021917,2]
[332454223,1721202634312,-500.0,0.00021917,2]
[332454224,1721202634321,-501.95531932,0.00021917,2]
[332454225,1721202634331,-372.06446891,0.00021917,2]
[332454226,1721202634619,150.5,0.00021887,62]
[332454227,1721202634657,150.5,0.0002348,62]
[332454228,1721202634812,150.5,0.0002347,62]
[332454229,1721202634889,150.5,0.0002347,62]
[332454230,1721202634935,150.5,0.0002349,62]
[332454231,1721202635044,150.5,0.0002348,62]
[332454232,1721202635143,150.5,0.0002347,62]
[332454357,1721202640267,-127.93553109,0.00021917,2]
[332454359,1721202640281,-500.0,0.00021917,2]
[332454360,1721202640290,-500.0,0.00021917,2]
[332454361,1721202640300,-500.0,0.00021917,2]
[332454362,1721202640311,-505.79705246,0.00021917,2]
[332454363,1721202640322,-500.0,0.00021917,2]
[332454364,1721202640332,-509.88744892,0.00021917,2]
[332454365,1721202640342,-320.98044207,0.00021917,2]
[332454366,1721202640355,-500.0,0.00021917,2]
[332454367,1721202640364,-506.37481179,0.00021917,2]
[332454368,1721202640374,-510.06721368,0.00021917,2]
[332454369,1721202640386,-511.56153135,0.00021917,2]
[332454370,1721202640396,-500.0,0.00021917,2]
[332454371,1721202640407,-500.0,0.00021917,2]
[332454372,1721202640416,-500.0,0.00021917,2]
[332454373,1721202640428,-500.0,0.00021917,2]
[332454374,1721202640439,-500.0,0.00021917,2]
[332454375,1721202640451,-500.0,0.00021917,2]
[332454376,1721202640459,-500.43585363,0.00021917,2]
[332454377,1721202640468,-500.0,0.00021917,2]
[332454378,1721202640478,-500.0,0.00021917,2]
[332454379,1721202640487,-500.0,0.00021917,2]
[332454380,1721202640496,-498.73436249,0.00021917,2]
[332454381,1721202640505,-326.0503484,0.00021917,2]
[332454382,1721202640514,-500.0,0.00021917,2]
[332454383,1721202640523,-500.0,0.00021917,2]
[332454384,1721202640531,-500.0,0.00021917,2]
[332454385,1721202640540,-500.0,0.00021917,2]
[332454386,1721202640549,-500.0,0.00021917,2]
[332454387,1721202640558,-550.19818618,0.00021917,2]
[332454388,1721202640568,-500.0,0.00021917,2]
[332454389,1721202640577,-500.0,0.00021917,2]
[332454390,1721202640586,-500.0,0.00021917,2]
[332454391,1721202640597,-500.0,0.00021917,2]
[332454392,1721202640606,-500.0,0.00021917,2]
[332454393,1721202640615,-527.59493154,0.00021917,2]
[332454394,1721202640625,-525.89997545,0.00021917,2]
[332454395,1721202640634,-500.0,0.00021917,2]
[332454396,1721202640643,-500.0,0.00021917,2]
[332454397,1721202640652,-548.00304975,0.00021917,2]
[332454398,1721202640662,-500.0,0.00021917,2]
[332454399,1721202640671,-599.94784458,0.00021917,2]
[332454400,1721202640680,-500.0,0.00021917,2]
[332454401,1721202640689,-500.0,0.00021917,2]
[332454402,1721202640698,-500.72496377,0.00021917,2]
[332454403,1721202640707,-500.0,0.00021917,2]
[332454404,1721202640716,-504.43312534,0.00021917,2]
[332454405,1721202640726,-500.0,0.00021917,2]
[332454406,1721202640735,-500.0,0.00021917,2]
[332454407,1721202640744,-500.0,0.00021917,2]
[332454408,1721202640754,-501.75984912,0.00021917,2]
[332454409,1721202640763,-502.51666468,0.00021917,2]
[332454410,1721202640773,-500.0,0.00021917,2]
[332454411,1721202640782,-501.02034836,0.00021917,2]
[332454412,1721202640791,-500.0,0.00021917,2]
[332454413,1721202640800,-500.0,0.00021917,2]
[332454414,1721202640810,-503.01603769,0.00021917,2]
[332454415,1721202640818,-500.0,0.00021917,2]
[332454416,1721202640827,-500.0,0.00021917,2]
[332454417,1721202640836,-510.87074694,0.00021917,2]
[332454418,1721202640847,-500.0,0.00021917,2]
[332454419,1721202640858,-500.0,0.00021917,2]
[332454420,1721202640868,-500.0,0.00021917,2]
[332454421,1721202640877,-500.0,0.00021917,2]
[332454422,1721202640886,-500.0,0.00021917,2]
[332454423,1721202640895,-500.0,0.00021917,2]
[332454424,1721202640904,-500.0,0.00021917,2]
[332454425,1721202640913,-275.15009068,0.00021917,2]
[332454426,1721202640923,-500.0,0.00021917,2]
[332454427,1721202640933,-500.0,0.00021917,2]
[332454428,1721202640942,-500.0,0.00021917,2]
[332454429,1721202640951,-500.0,0.00021917,2]
[332454430,1721202640960,-504.92971963,0.00021917,2]
[332454431,1721202640969,-500.0,0.00021917,2]
[332454432,1721202640978,-500.0,0.00021917,2]
[332454433,1721202640987,-500.0,0.00021917,2]
[332454434,1721202640996,-500.0,0.00021917,2]
[332454435,1721202641006,-500.0,0.00021917,2]
[332454436,1721202641015,-500.0,0.00021917,2]
[332454437,1721202641024,-500.0,0.00021917,2]
[332454438,1721202641033,-500.0,0.00021917,2]
[332454439,1721202641043,-515.02343445,0.00021917,2]
[332454440,1721202641053,-500.0,0.00021917,2]
[332454441,1721202641062,-500.0,0.00021917,2]
[332454442,1721202641072,-500.0,0.00021917,2]
[332454443,1721202641082,-500.0,0.00021917,2]
[332454444,1721202641093,-500.0,0.00021917,2]
[332454445,1721202641104,-565.88,0.00021917,2]
[332454446,1721202641117,-500.0,0.00021917,2]
[332454447,1721202641126,-500.0,0.00021917,2]
[332454448,1721202641136,-500.0,0.00021917,2]
[332454449,1721202641146,-500.0,0.00021917,2]
[332454450,1721202641155,-500.0,0.00021917,2]
[332454451,1721202641165,-500.0,0.00021917,2]
[332454452,1721202641175,-500.0,0.00021917,2]
[332454453,1721202641184,-500.0,0.00021917,2]
[332454454,1721202641194,-500.0,0.00021917,2]
[332454455,1721202641204,-500.0,0.00021917,2]
[332454456,1721202641213,-503.57964101,0.00021917,2]
[332454457,1721202641223,-500.0,0.00021917,2]
[332454458,1721202641232,-500.0,0.00021917,2]
[332454459,1721202641242,-500.0,0.00021917,2]
[332454460,1721202641251,-500.0,0.00021917,2]
[332454461,1721202641260,-525.75727578,0.00021917,2]
[332454462,1721202641270,-500.0,0.00021917,2]
[332454463,1721202641284,-503.72914366,0.00021917,2]
[332454464,1721202641299,-500.0,0.00021917,2]
[332454465,1721202641313,-500.0,0.00021917,2]
[332454466,1721202641328,-500.0,0.00021917,2]
[332454467,1721202641339,-500.0,0.00021917,2]
[332454468,1721202641357,-500.0,0.00021917,2]
[332454469,1721202641369,-500.0,0.00021917,2]
[332454470,1721202641382,-500.0,0.00021917,2]
[332454471,1721202641396,-500.0,0.00021917,2]
[332454472,1721202641410,-500.0,0.00021917,2]
[332454473,1721202641423,-500.0,0.00021917,2]
[332454474,1721202641438,-372.58657601,0.00021917,2]
[332454475,1721202641452,-500.0,0.00021917,2]
[332454476,1721202641462,-500.0,0.00021917,2]
[332454477,1721202641476,-500.0,0.00021917,2]
[332454478,1721202641488,-500.0,0.00021917,2]
[332454479,1721202641501,-500.0,0.00021917,2]
[332454480,1721202641511,-500.0,0.00021917,2]
[332454481,1721202641523,-500.0,0.00021917,2]
[332454482,1721202641535,-500.0,0.00021917,2]
[332454483,1721202641547,-500.0,0.00021917,2]
[332454484,1721202641560,-500.0,0.00021917,2]
[332454485,1721202641572,-524.36714738,0.00021917,2]
[332454486,1721202641586,-500.0,0.00021917,2]
[332454487,1721202641604,-500.0,0.00021917,2]
[332454488,1721202641616,-500.0,0.00021917,2]
[332454489,1721202641627,-500.0,0.00021917,2]
[332454490,1721202641637,-500.0,0.00021917,2]
[332454491,1721202641647,-498.1774399,0.00021917,2]
[332454492,1721202641661,-500.0,0.00021917,2]
[332454493,1721202641678,-514.61820134,0.00021917,2]
[332454494,1721202641689,-506.87875233,0.00021917,2]
[332454495,1721202641701,-500.0,0.00021917,2]
[332454496,1721202641712,-500.0,0.00021917,2]
[332454497,1721202641725,-500.0,0.00021917,2]
[332454498,1721202641736,-500.0,0.00021917,2]
[332454499,1721202641746,-500.0,0.00021917,2]
[332454500,1721202641757,-500.0,0.00021917,2]
[332454501,1721202641768,-500.0,0.00021917,2]
[332454502,1721202641779,-364.16768691,0.00021917,2]
[332454503,1721202641790,-537.60815963,0.00021917,2]
[332454504,1721202641801,-500.0,0.00021917,2]
[332454505,1721202641813,-531.02602835,0.00021917,2]
[332454506,1721202641823,-500.0,0.00021917,2]
[332454507,1721202641834,-500.0,0.00021917,2]
[332454508,1721202641847,-500.29306562,0.00021917,2]
[332454509,1721202641858,-500.0,0.00021917,2]
[332454510,1721202641869,-561.97643977,0.00021917,2]
[332454511,1721202641880,-500.0,0.00021917,2]
[332454512,1721202641892,-575.34229989,0.00021917,2]
[332454513,1721202641903,-500.0,0.00021917,2]
[332454514,1721202641914,-500.0,0.00021917,2]
[332454515,1721202641925,-500.0,0.00021917,2]
[332454516,1721202641936,-500.0,0.00021917,2]
[332454517,1721202641947,-500.0,0.00021917,2]
[332454518,1721202641958,-503.94799148,0.00021917,2]
[332454519,1721202641969,-500.0,0.00021917,2]
[332454520,1721202641981,-500.0,0.00021917,2]
[332454521,1721202641992,-500.0,0.00021917,2]
[332454522,1721202642004,-500.0,0.00021917,2]
[332454523,1721202642016,-500.0,0.00021917,2]
[332454524,1721202642028,-500.0,0.00021917,2]
[332454525,1721202642039,-500.0,0.00021917,2]
[332454526,1721202642050,-500.0,0.00021917,2]
[332454527,1721202642062,-500.0,0.00021917,2]
[332454528,1721202642073,-501.59586345,0.00021917,2]
[332454529,1721202642086,-500.0,0.00021917,2]
[332454530,1721202642101,-500.0,0.00021917,2]
[332454531,1721202642113,-500.0,0.00021917,2]
[332454532,1721202642124,-500.0,0.00021917,2]
[332454533,1721202642137,-500.0,0.00021917,2]
[332454534,1721202642149,-501.43998231,0.00021917,2]
[332454535,1721202642160,-500.0,0.00021917,2]
[332454536,1721202642172,-500.0,0.00021917,2]
[332454537,1721202642183,-500.0,0.00021917,2]
[332454538,1721202642195,-500.0,0.00021917,2]
[332454539,1721202642206,-500.0,0.00021917,2]
[332454540,1721202642218,-500.0,0.00021917,2]
[332454541,1721202642229,-500.0,0.00021917,2]
[332454542,1721202642240,-500.0,0.00021917,2]
[332454543,1721202642251,-500.0,0.00021917,2]
[332454544,1721202642263,-500.0,0.00021917,2]
[332454546,1721202642278,-500.0,0.00021917,2]
[332454547,1721202642290,-519.14436175,0.00021917,2]
[332454548,1721202642301,-503.71708603,0.00021917,2]
[332454549,1721202642312,-501.4547956,0.00021917,2]
[332454550,1721202642324,-500.0,0.00021917,2]
[332454551,1721202642335,-500.0,0.00021917,2]
[332454552,1721202642351,-477.57497692,0.00021917,2]
[332454553,1721202642383,-22.42502308,0.00021917,2]
[332454556,1721202642394,-241.57497692,0.00021917,2]
[332454574,1721202642915,-263.78103952,0.00021917,2]
[332454575,1721202642927,-505.84843803,0.00021917,2]
[332454576,1721202642940,-500.0,0.00021917,2]
[332454577,1721202642951,-500.0,0.00021917,2]
[332454578,1721202642963,-500.0,0.00021917,2]
[332454579,1721202642975,-500.0,0.00021917,2]
[332454580,1721202642987,-500.0,0.00021917,2]
[332454581,1721202642998,-353.58052245,0.00021917,2]
[332454582,1721202643019,-146.41947755,0.00021917,2]
[332454583,1721202643031,-500.0,0.00021917,2]
[332454584,1721202643043,-500.0,0.00021917,2]
[332454585,1721202643055,-505.47407513,0.00021917,2]
[332454586,1721202643067,-500.0,0.00021917,2]
[332454587,1721202643080,-500.0,0.00021917,2]
[332454588,1721202643093,-500.0,0.00021917,2]
[332454589,1721202643105,-500.0,0.00021917,2]
[332454590,1721202643116,-500.0,0.00021917,2]
[332454591,1721202643129,-500.0,0.00021917,2]
[332454592,1721202643141,-500.0,0.00021917,2]
[332454593,1721202643153,-500.0,0.00021917,2]
[332454594,1721202643165,-500.0,0.00021917,2]
[332454595,1721202643176,-500.0,0.00021917,2]
[332454596,1721202643187,-500.0,0.00021917,2]
[332454597,1721202643199,-500.0,0.00021917,2]
[332454598,1721202643211,-500.0,0.00021917,2]
[332454599,1721202643222,-500.0,0.00021917,2]
[332454600,1721202643233,-81.26482402,0.00021917,2]
[332454603,1721202646427,-418.73517598,0.00021917,2]
[332454604,1721202646438,-500.0,0.00021917,2]
[332454605,1721202646449,-43.07693725,0.00021917,2]
[332454606,1721202646540,-464.05404866,0.00021917,2]
[332454607,1721202646549,-500.0,0.00021917,2]
[332454608,1721202646558,-500.0,0.00021917,2]
[332454609,1721202646568,-500.0,0.00021917,2]
[332454610,1721202646577,-528.75077034,0.00021917,2]
[332454611,1721202646586,-583.60933137,0.00021917,2]
[332454612,1721202646595,-500.0,0.00021917,2]
[332454613,1721202646606,-509.43091596,0.00021917,2]
[332454614,1721202646617,-500.0,0.00021917,2]
[332454615,1721202646626,-528.7983058,0.00021917,2]
[332454616,1721202646635,-500.0,0.00021917,2]
[332454617,1721202646645,-500.0,0.00021917,2]
[332454618,1721202646653,-503.15259238,0.00021917,2]
[332454619,1721202646663,-500.0,0.00021917,2]
[332454620,1721202646672,-500.0,0.00021917,2]
[332454621,1721202646681,-49.71261884,0.00021917,2]
[332454622,1721202646693,-450.28738116,0.00021917,2]
[332454623,1721202646703,-428.6393714,0.00021917,2]
[332454624,1721202751583,251.87,0.00021908,62]
[332454628,1721202797962,254.36826724,0.00014999,2]
[332454629,1721202888877,412.84667605,0.00024,60]
[332454638,1721203013306,156.33744284,0.00014999,2]
[332454644,1721203036304,1119.68647248,0.00014999,2]
[332454663,1721203184638,3608.8394922,0.00014999,2]
[332454669,1721203231455,1287.68811622,0.00015,2]
[332454671,1721203249612,234.69492957,0.00020222,7]
[332454685,1721203406831,41092.57195198,0.000241,120]
[332454686,1721203428088,422.0,0.0002,7]
[332454687,1721203432027,1444.69632646,0.00014999,2]
[332454699,1721203575837,217.84692174,0.00014999,2]
[332454710,1721203685675,217.84692174,0.00014999,2]
[332454711,1721203688657,610.635225,0.00015,2]
[332454712,1721203705187,352.98086887,0.00014999,2]
[332454716,1721203730360,6143.49453199,0.00015,2]
[332454718,1721203767958,381.28968817,0.00014999,2]
[332454719,1721203793764,217.84692174,0.00014999,2]
[332454723,1721203830291,1987.94718132,0.00014999,2]
[332454836,1721203838166,-934.8017749,0.00016255,2]
[332454838,1721203838177,-1140.44295447,0.00016255,2]
[332454840,1721203838188,-2423.89779899,0.00016255,2]
[332454842,1721203838198,-5692.84324916,0.00017784,2]
[332454896,1721203840073,-19187.15675084,0.00017784,2]
[332454897,1721203840083,-300.0,0.00018179,2]
[332454898,1721203840095,-191.39935973,0.0001818,2]
[332454899,1721203840104,-154.8364371,0.0001818,2]
[332454900,1721203840114,-1638.25429105,0.0001818,2]
[332454901,1721203840124,-911.91550211,0.0001818,2]
[332454902,1721203840133,-632.91268039,0.0001818,2]
[332454903,1721203840142,-491.90139164,0.00018899,2]
[332454904,1721203840152,-491.90139164,0.00018899,2]
[332454906,1721203840162,-312.07224722,0.00019,2]
[332454908,1721203840171,-164.842529,0.00019178,2]
[332454910,1721203840180,-420.0,0.00019997,2]
[332454912,1721203840190,-428.94151396,0.00020222,2]
[332454914,1721203840199,-764.99692513,0.00020222,2]
[332454916,1721203840209,-170.97082717,0.00020222,2]
[332454918,1721203840218,-6878.25807542,0.00020222,2]
[332454920,1721203840227,-222.59515947,0.00020222,2]
[332454922,1721203840237,-226.06683349,0.00020222,2]
[332454924,1721203840246,-219.1,0.00020818,2]
[332454926,1721203840256,-248.11643315,0.00021,2]
[332454928,1721203840265,-1000.0,0.00021,9]
[332454930,1721203840275,-257.78804153,0.00021031,2]
[332454932,1721203840284,-200.07730814,0.00021095,2]
[332454934,1721203840294,-396.60210355,0.00021095,2]
[332454936,1721203840303,-627.633384,0.00021096,2]
[332454938,1721203840312,-219.1,0.00021244,2]
[332454940,1721203840322,-151.0,0.00021244,2]
[332454942,1721203840331,-1407.0,0.0002128,2]
[332454944,1721203840341,-4802.49105129,0.00021423,2]
[332454946,1721203840351,-150.59952781,0.00021556,2]
[332454948,1721203840360,-602.33397314,0.00021566,2]
[332454950,1721203840370,-306.0,0.00021602,2]
[332454952,1721203840380,-344.96997794,0.00021636,2]
[332454954,1721203840389,-293.6566525,0.00021644,2]
[332454956,1721203840399,-293.6566525,0.00021644,2]
[332454958,1721203840408,-293.6566525,0.00021644,2]
[332454960,1721203840418,-4802.49105129,0.00021667,2]
[332454962,1721203840427,-219.1,0.00021669,2]
[332454964,1721203840437,-151.0,0.00021669,2]
[332454966,1721203840446,-1000.0,0.00021688,2]
[332454968,1721203840456,-300.44952216,0.00021768,2]
[332454970,1721203840466,-1000.0,0.00021825,2]
[332454973,1721203840475,-206.4665977,0.00021863,2]
[332454975,1721203840485,-344.96997794,0.00021871,2]
[332454977,1721203840495,-877.02144721,0.0002189,2]
[332454979,1721203840504,-2385.56174298,0.00021906,3]
[332454981,1721203840513,-42940.1113736,0.00021907,3]
[332454983,1721203840523,-500.0,0.00021916,2]
[332454985,1721203840532,-500.0,0.00021916,2]
[332454987,1721203840541,-416.20669475,0.00021916,2]
[332454989,1721203840551,-500.0,0.00021916,2]
[332454991,1721203840560,-486.95037903,0.00021916,2]
[332454993,1721203840569,-240.54106302,0.00021916,2]
[332454995,1721203840579,-486.58476362,0.00021916,2]
[332454997,1721203840589,-500.0,0.00021916,2]
[332454999,1721203840599,-500.0,0.00021916,2]
[332455001,1721203840608,-500.0,0.00021916,2]
[332455003,1721203840618,-44769.75674313,0.00021916,2]
[332455005,1721203840627,-15194.10852456,0.00021917,5]
[332455007,1721203840636,-3602.02981968,0.00021917,5]
[332455009,1721203840648,-84.47402881,0.00021917,2]
[332455011,1721203840657,-500.0,0.00021917,2]
[332455013,1721203840666,-500.0,0.00021917,2]
[332455015,1721203840676,-500.0,0.00021917,2]
[332455017,1721203840687,-500.0,0.00021917,2]
[332455019,1721203840698,-500.0,0.00021917,2]
[332455021,1721203840707,-500.0,0.00021917,2]
[332455023,1721203840717,-500.0,0.00021917,2]
[332455025,1721203840730,-500.0,0.00021917,2]
[332455027,1721203840740,-500.0,0.00021917,2]
[332455030,1721203840752,-500.0,0.00021917,2]
[332455032,1721203840762,-500.0,0.00021917,2]
[332455033,1721203840772,-617.55934346,0.00021917,2]
[332455035,1721203840782,-500.0,0.00021917,2]
[332455038,1721203840791,-536.82881282,0.00021917,2]
[332455040,1721203840800,-507.93935251,0.00021917,2]
[332455042,1721203840810,-500.0,0.00021917,2]
[332455043,1721203840819,-511.8920678,0.00021917,2]
[332455045,1721203840829,-500.0,0.00021917,2]
[332455047,1721203840838,-516.51267347,0.00021917,2]
[332455049,1721203840848,-500.0,0.00021917,2]
[332455051,1721203840858,-502.43553884,0.00021917,2]
[332455054,1721203840869,-500.0,0.00021917,2]
[332455056,1721203840879,-500.0,0.00021917,2]
[332455058,1721203840889,-500.0,0.00021917,2]
[332455059,1721203840898,-500.0,0.00021917,2]
[332455062,1721203840908,-500.0,0.00021917,2]
[332455063,1721203840918,-500.0,0.00021917,2]
[332455065,1721203840927,-501.48627401,0.00021917,2]
[332455067,1721203840937,-500.0,0.00021917,2]
[332455069,1721203840947,-500.0,0.00021917,2]
[332455071,1721203840956,-500.0,0.00021917,2]
[332455073,1721203840966,-507.46710864,0.00021917,2]
[332455075,1721203840977,-500.0,0.00021917,2]
[332455077,1721203840989,-500.0,0.00021917,2]
[332455080,1721203841000,-500.0,0.00021917,2]
[332455082,1721203841011,-500.0,0.00021917,2]
[332455084,1721203841022,-500.0,0.00021917,2]
[332455086,1721203841032,-500.0,0.00021917,2]
[332455088,1721203841042,-500.0,0.00021917,2]
[332455090,1721203841053,-505.2861566,0.00021917,2]
[332455092,1721203841062,-500.0,0.00021917,2]
[332455094,1721203841072,-500.0,0.00021917,2]
[332455096,1721203841082,-500.0,0.00021917,2]
[332455098,1721203841094,-500.0,0.00021917,2]
[332455100,1721203841103,-500.0,0.00021917,2]
[332455102,1721203841113,-500.0,0.00021917,2]
[332455104,1721203841122,-472.20337247,0.00021917,2]
[332455106,1721203841132,-500.0,0.00021917,2]
[332455108,1721203841141,-438.36043315,0.00021917,2]
[332455110,1721203841150,-503.39614467,0.00021917,2]
[332455112,1721203841160,-500.0,0.00021917,2]
[332455114,1721203841170,-500.0,0.00021917,2]
[332455116,1721203841179,-500.0,0.00021917,2]
[332455118,1721203841190,-500.0,0.00021917,2]
[332455120,1721203841200,-500.0,0.00021917,2]
[332455123,1721203841210,-500.0,0.00021917,2]
[332455125,1721203841219,-500.0,0.00021917,2]
[332455126,1721203841228,-500.0,0.00021917,2]
[332455128,1721203841237,-488.95170897,0.00021917,2]
[332455130,1721203841247,-500.0,0.00021917,2]
[332455132,1721203841256,-500.0,0.00021917,2]
[332455134,1721203841266,-500.0,0.00021917,2]
[332455136,1721203841276,-500.0,0.00021917,2]
[332455138,1721203841285,-500.0,0.00021917,2]
[332455140,1721203841294,-500.0,0.00021917,2]
[332455142,1721203841304,-500.0,0.00021917,2]
[332455145,1721203841314,-500.0,0.00021917,2]
[332455147,1721203841324,-535.90890812,0.00021917,2]
[332455148,1721203841334,-500.0,0.00021917,2]